bitfinex/quotes_ETHUSD_20251217
["timestamp","ask_amount","ask_price","bid_price","bid_amount"]
[1765951629840,3.87598481,2940.9,2940.6,0.002]
[1765951630049,4.33678481,2940.9,2940.6,0.002]
[1765951630236,0.9354,2940.7,2940.6,0.002]
[1765951630753,0.4746,2940.7,2940.6,0.002]
[1765951631462,0.9354,2940.7,2940.6,0.002]
[1765951631663,0.4746,2940.7,2940.6,0.002]
[1765951631957,3.87515088,2940.7,2940.6,0.002]
[1765951632162,4.33595088,2940.7,2940.6,0.002]
[1765951632564,0.9354,2940.7,2940.6,0.002]
[1765951632864,0.4746,2940.7,2940.6,0.002]
[1765951633856,3.40049168,2940.8,2940.6,0.002]
[1765951634532,0.4608,2940.8,2940.6,0.002]
[1765951634737,0.4746,2940.7,2940.6,0.002]
[1765951635841,0.9354,2940.7,2940.6,0.002]
[1765951636246,1.5521856,2940.7,2940.6,0.002]
[1765951636641,4.33595088,2940.7,2940.6,0.002]
[1765951637642,0.001,2940.9,2940.6,0.002]
[1765951637841,0.001,2940.9,2940.8,0.1096]
[1765951638647,0.4746,2940.7,2940.6,0.002]
[1765951638952,0.001,2940.9,2940.6,0.1116]
[1765951639462,0.001,2940.9,2940.6,0.002]
[1765951639463,0.4746,2940.7,2940.6,0.002]
[1765951640775,4.33595088,2940.7,2940.6,0.002]
[1765951642366,3.40048662,2940.8,2940.6,0.1116]
[1765951642569,3.40134275,2940.9,2940.7,0.1096]
[1765951643571,6.8016855,2940.9,2940.7,0.1096]
[1765951643869,3.40055088,2940.7,2940.6,0.1116]
[1765951644446,3.40131963,2940.9,2940.8,0.1096]
[1765951645248,0.001,2940.9,2940.8,0.1096]
[1765951648472,0.001,2940.9,2940.6,0.002]
[1765951648473,0.4756,2940.9,2940.6,0.002]
[1765951648674,0.4746,2940.7,2940.6,0.002]
[1765951650478,3.87515088,2940.7,2940.6,0.002]
[1765951650979,4.33595088,2940.7,2940.6,0.002]
[1765951652352,0.4746,2940.7,2940.6,0.002]
[1765951652753,3.40048738,2940.8,2940.6,0.002]
[1765951654691,0.4555,2940.7,2940.6,0.002]
[1765951654895,0.9389,2940.7,2940.6,0.002]
[1765951655557,1.00538023,2940.9,2940.6,0.002]
[1765951655856,0.78157883,2940.9,2940.6,0.002]
[1765951656655,0.4921,2940.7,2940.6,0.002]
[1765951657056,6.8008705,2940.8,2940.6,0.002]
[1765951658281,0.001,2940.7,2940.6,0.002]
[1765951659389,3.89365088,2940.7,2940.6,0.002]
[1765951659595,4.36385088,2940.7,2940.6,0.002]
[1765951661485,0.001,2940.7,2940.6,0.1116]
[1765951662201,3.40155088,2940.7,2940.6,0.1116]
[1765951665194,0.001,2940.7,2940.6,0.1116]
[1765951665504,0.001,2940.7,2940.6,0.2212]
[1765951665684,0.001,2940.7,2940.6,0.72115485]
[1765951666190,0.001,2940.7,2940.6,4.13209852]
[1765951666391,0.001,2940.7,2940.6,13.6642412]
[1765951666569,0.001,2940.7,2940.6,14.0697452]
[1765951667670,0.001,2940.7,2940.6,14.53412543]
[1765951667894,0.001,2940.7,2940.6,5.00198275]
[1765951668671,0.001,2940.7,2940.6,9.76805409]
[1765951668890,0.001,2940.7,2940.6,5.00198275]
[1765951673375,0.001,2940.7,2940.6,4.13209852]
[1765951673879,0.001,2940.7,2940.6,0.1116]
[1765951674477,0.001,2940.7,2940.6,0.2212]
[1765951678889,0.001,2940.7,2940.6,0.1116]
[1765951680680,0.9633,2940.7,2940.6,0.002]
[1765951680980,4.36385088,2940.7,2940.6,0.002]
[1765951681185,1.73982031,2940.7,2940.6,0.002]
[1765951681408,1.26962031,2940.7,2940.6,0.002]
[1765951682013,4.67017119,2940.7,2940.6,0.002]
[1765951682218,5.14037119,2940.7,2940.6,0.002]
[1765951684518,0.77752031,2940.7,2940.6,0.1116]
[1765951684721,3.40155088,2940.7,2940.6,0.1116]
[1765951685017,3.88475088,2940.7,2940.6,0.002]
[1765951685401,0.001,2940.7,2940.6,0.1116]
[1765951685603,3.40155088,2940.7,2940.6,0.1116]
[1765951687630,0.001,2940.7,2940.6,0.1116]
[1765951690123,0.4842,2940.7,2940.6,0.002]
[1765951690629,0.001,2940.7,2940.6,0.1116]
[1765951691203,1.62178705,2940.7,2940.6,0.002]
[1765951692361,5.02233793,2940.7,2940.6,0.002]
[1765951692631,4.34205088,2940.7,2940.6,0.002]
[1765951692831,3.88475088,2940.7,2940.6,0.002]
[1765951693221,4.34205088,2940.7,2940.6,0.002]
[1765951695326,3.88475088,2940.7,2940.6,0.002]
[1765951695936,5.07066995,2940.7,2940.6,0.002]
[1765951706454,4.34205088,2940.7,2940.6,0.002]
[1765951711658,3.88475088,2940.7,2940.6,0.002]
[1765951712052,4.34205088,2940.7,2940.6,0.002]
[1765951718068,0.4631,2940.6,2940.0,3.94030606]
[1765951718572,0.9477,2940.6,2940.0,3.94030606]
[1765951718816,0.9477,2940.6,2940.0,4.67449274]
[1765951719561,0.9477,2940.6,2940.5,0.002]
[1765951720164,4.34836653,2940.6,2940.5,0.002]
[1765951726841,3.86376653,2940.6,2940.5,0.002]
[1765951728570,4.34836653,2940.6,2940.5,0.002]
[1765951729669,5.12335851,2940.6,2940.5,0.002]
[1765951730741,10.42911359,2940.6,2940.5,0.002]
[1765951730938,15.6602489,2940.6,2940.5,0.002]
[1765951731742,16.0657529,2940.6,2940.5,0.002]
[1765951731947,5.58773874,2940.6,2940.5,0.002]
[1765951733065,0.001,2940.7,2940.5,0.0696]
[1765951733285,3.86593792,2940.7,2940.6,0.0676]
[1765951733462,8.21419561,2940.7,2940.5,0.002]
[1765951733657,4.81363792,2940.7,2940.5,0.002]
[1765951733978,0.9477,2940.6,2940.5,0.002]
[1765951734952,4.34836653,2940.6,2940.5,0.002]
[1765951736183,3.40066653,2940.6,2940.5,0.0696]
[1765951736482,3.86376653,2940.6,2940.5,0.002]
[1765951736652,4.34836653,2940.6,2940.5,0.002]
[1765951736851,5.16979649,2940.6,2940.5,0.002]
[1765951739382,5.63417672,2940.6,2940.5,0.002]
[1765951739752,10.4009318,2940.6,2940.5,0.002]
[1765951741577,10.8064358,2940.6,2940.5,0.002]
[1765951741967,10.94276496,2940.6,2940.5,0.002]
[1765951742658,6.17600988,2940.6,2940.5,0.002]
[1765951742858,11.48176496,2940.6,2940.5,0.002]
[1765951743857,6.71500988,2940.6,2940.5,0.002]
[1765951744259,10.94276496,2940.6,2940.5,0.002]
[1765951744473,11.48176496,2940.6,2940.5,0.002]
[1765951745655,11.48276496,2940.6,2940.5,0.002]
[1765951747267,6.71600988,2940.6,2940.5,0.002]
[1765951747479,6.17700988,2940.6,2940.5,0.002]
[1765951747680,11.48276496,2940.6,2940.5,0.002]
[1765951747880,16.24952004,2940.6,2940.5,0.002]
[1765951748397,11.48276496,2940.6,2940.5,0.002]
[1765951748572,16.24952004,2940.6,2940.5,0.002]
[1765951750369,5.30712565,2940.6,2940.5,0.002]
[1765951750588,4.00109569,2940.6,2940.5,0.002]
[1765951750765,4.46547592,2940.6,2940.5,0.002]
[1765951750965,4.32914676,2940.6,2940.5,0.002]
[1765951751566,3.86476653,2940.6,2940.5,0.002]
[1765951751962,0.001,2940.6,2940.5,0.0696]
[1765951753464,0.001,2940.6,2940.5,8.30473725]
[1765951753664,0.001,2940.6,2940.5,9.94070201]
[1765951754393,0.001,2941.8,2941.3,0.1312]
[1765951754798,0.001,2941.8,2941.3,0.14147714]
[1765951756095,0.001,2941.8,2941.3,0.1312]
[1765951756273,0.001,2941.8,2941.3,3.5310572]
[1765951756483,0.001,2941.8,2941.3,4.23881502]
[1765951756981,0.001,2941.8,2941.3,4.24909216]
[1765951757313,0.001,2941.8,2941.3,5.15297496]
[1765951757514,0.001,2941.8,2941.3,21.48885467]
[1765951757673,0.001,2941.8,2941.3,21.83478302]
[1765951758215,0.001,2941.8,2941.3,17.86473602]
[1765951758422,0.001,2941.8,2941.3,17.49943702]
[1765951758915,0.001,2941.8,2941.3,5.11897639]
[1765951760201,0.001,2941.8,2941.3,4.71347239]
[1765951764015,0.001,2941.8,2941.3,4.23881502]
[1765951766102,0.001,2941.8,2941.3,0.83895782]
[1765951766304,0.001,2941.8,2941.3,4.24909216]
[1765951771195,0.001,2941.8,2941.3,4.28309073]
[1765951771615,0.001,2941.8,2941.3,4.68859473]
[1765951771994,0.001,2941.8,2941.3,5.15297496]
[1765951772319,0.001,2941.8,2941.3,5.11897639]
[1765951772483,0.001,2941.8,2941.3,5.28918296]
[1765951773614,0.001,2941.8,2941.3,5.25518439]
[1765951775424,0.001,2941.8,2941.3,10.0160771]
[1765951779659,0.001,2941.8,2941.3,18.5112331]
[1765951779951,0.001,2941.8,2941.3,15.8387411]
[1765951780710,0.001,2941.8,2941.3,22.98302232]
[1765951781644,0.001,2941.8,2941.3,20.8642391]
[1765951783858,0.001,2941.8,2941.3,10.0160771]
[1765951784343,0.001,2941.8,2941.3,12.5335931]
[1765951785013,0.001,2941.8,2941.3,24.2063191]
[1765951785214,0.001,2941.8,2941.3,22.98302232]
[1765951787342,0.001,2941.8,2941.3,10.0160771]
[1765951788754,0.001,2942.6,2942.0,0.0646]
[1765951788950,0.001,2943.0,2942.9,0.1262]
[1765951789245,0.001,2943.0,2942.9,10.65136565]
[1765951789456,0.46438023,2944.3,2943.0,0.99308423]
[1765951789620,3.86688718,2944.5,2943.1,0.582304]
[1765951789821,3.39606442,2944.6,2943.1,9.20535479]
[1765951790021,3.39616637,2944.5,2943.1,9.20535479]
[1765951790228,3.86047003,2944.6,2943.1,9.20535479]
[1765951790748,3.39617939,2944.5,2943.1,9.20535479]
[1765951791143,3.39608241,2944.6,2943.1,9.20535479]
[1765951791346,0.46438023,2944.5,2943.1,10.62507797]
[1765951791530,3.39618202,2944.5,2943.1,10.62507797]
[1765951792221,3.39618202,2944.5,2943.1,4.44446208]
[1765951792422,0.6676,2943.9,2943.1,1.02187348]
[1765951792626,0.6676,2943.9,2943.1,4.05197785]
[1765951792856,0.6676,2943.9,2943.1,4.10957785]
[1765951793445,0.001,2944.4,2943.1,4.10957785]
[1765951793651,0.4707,2944.1,2943.1,4.10957785]
[1765951794171,3.39639303,2944.3,2943.1,4.51508185]
[1765951794336,0.001,2944.4,2943.1,11.19405574]
[1765951794648,0.001,2944.4,2943.1,11.16007797]
[1765951794851,0.001,2944.4,2943.1,24.94967387]
[1765951795356,0.001,2944.4,2943.1,18.50023787]
[1765951796024,0.001,2944.4,2943.1,20.49014287]
[1765951796226,0.001,2944.4,2943.1,20.28609287]
[1765951797027,0.001,2944.4,2943.1,21.80210687]
[1765951798062,0.001,2944.4,2943.1,25.35965987]
[1765951798244,0.001,2944.4,2943.1,25.74076287]
[1765951798445,0.001,2944.4,2943.1,25.07143387]
[1765951798948,0.001,2944.4,2943.1,17.21778987]
[1765951799145,0.001,2944.4,2943.1,26.05973594]
[1765951801272,0.001,2944.4,2943.1,13.09279072]
[1765951801572,0.001,2944.4,2943.1,6.50667083]
[1765951801946,0.001,2944.4,2943.1,26.05973594]
[1765951802152,0.001,2944.4,2944.3,0.1142]
[1765951802466,0.001,2944.4,2944.3,4.04959303]
[1765951803245,0.001,2944.4,2944.3,5.19970807]
[1765951803760,0.001,2944.4,2944.3,5.233672]
[1765951804098,0.00103464,2945.1,2945.0,0.462104]
[1765951804239,0.00103464,2945.1,2945.0,1.057704]
[1765951804444,0.00103464,2945.1,2945.0,0.36738221]
[1765951804643,0.00103464,2945.1,2945.0,3.81956794]
[1765951805044,0.00103464,2945.1,2945.0,0.42398221]
[1765951805262,0.00103464,2945.1,2945.0,3.82984508]
[1765951805467,0.00103464,2945.1,2945.0,3.51906287]
[1765951806182,0.00103464,2945.1,2945.0,4.25519015]
[1765951806395,0.00103464,2945.1,2945.0,3.50878573]
[1765951806790,0.00103464,2945.1,2945.0,0.0566]
[1765951806995,0.00103464,2945.1,2945.0,0.5956]
[1765951808484,0.00203464,2945.1,2945.0,0.539]
[1765951808640,0.00203464,2945.1,2945.0,0.6522]
[1765951808844,0.00203464,2945.1,2945.0,4.04778573]
[1765951809072,0.00203464,2945.1,2945.0,5.57219249]
[1765951809274,0.00203464,2945.1,2945.0,5.53823664]
[1765951809700,0.00203464,2945.1,2945.0,0.0566]
[1765951810756,0.47673464,2945.1,2944.8,0.539]
[1765951811075,0.47673464,2945.1,2944.5,0.01027714]
[1765951811258,0.47673464,2945.1,2944.6,0.539]
[1765951811447,0.4786,2944.7,2944.0,0.0566]
[1765951811648,0.00203464,2945.1,2944.3,0.0566]
[1765951812796,0.00203464,2945.1,2945.0,0.0566]
[1765951812995,0.00203464,2945.1,2944.5,0.539]
[1765951813503,0.00203464,2945.1,2944.5,0.489]
[1765951814173,0.00203464,2945.1,2945.0,0.1132]
[1765951814801,0.00203464,2945.1,2945.0,3.50878573]
[1765951815884,0.00203529,2945.1,2945.0,3.50878573]
[1765951816265,0.00203529,2945.1,2945.0,4.59270494]
[1765951816867,0.00203529,2945.1,2945.0,4.99820894]
[1765951820183,0.00203529,2945.1,2945.0,4.60298208]
[1765951820905,0.00203529,2945.1,2945.0,3.45218573]
[1765951821402,0.00203529,2945.1,2945.0,3.46246287]
[1765951821575,0.00203529,2945.1,2945.0,3.45218573]
[1765951821780,0.4786,2945.0,2944.9,0.539]
[1765951821977,0.00203529,2945.1,2944.9,0.539]
[1765951822176,0.00203529,2945.1,2944.9,3.93463238]
[1765951822578,0.4786,2945.0,2944.9,0.539]
[1765951822789,0.9533,2945.0,2944.9,0.539]
[1765951823106,0.9533,2945.0,2944.5,0.539]
[1765951823406,0.4747,2944.8,2944.4,0.002]
[1765951823960,0.4786,2944.5,2944.4,0.002]
[1765951824280,0.9533,2944.5,2944.4,0.002]
[1765951825423,4.34946233,2944.5,2944.4,0.002]
[1765951825628,5.124013,2944.5,2944.4,0.002]
[1765951828739,5.58839323,2944.5,2944.4,0.002]
[1765951831526,0.1958,2944.3,2943.4,0.0566]
[1765951831851,0.4747,2943.9,2943.2,0.002]
[1765951833711,3.3969699,2943.8,2943.2,0.002]
[1765951833913,0.38716699,2943.7,2943.2,0.002]
[1765951834108,0.465,2943.3,2943.2,0.002]
[1765951834320,0.4659,2943.6,2943.2,0.002]
[1765951834504,0.85306699,2943.7,2943.2,0.002]
[1765951834926,0.38716699,2943.7,2943.2,0.002]
[1765951835931,3.3972007,2943.6,2943.2,0.002]
[1765951836103,4.11533446,2943.6,2943.2,0.002]
[1765951836432,0.71813376,2943.6,2943.2,0.002]
[1765951837910,4.60804844,2943.6,2943.2,0.002]
[1765951838117,4.11534844,2943.6,2943.2,0.002]
[1765951839025,0.9884,2943.3,2943.2,0.002]
[1765951840144,0.4927,2943.5,2943.2,0.0586]
[1765951840443,3.88992325,2943.6,2943.2,0.0586]
[1765951840648,1.22140885,2943.5,2943.2,0.002]
[1765951841253,0.72870885,2943.5,2943.2,0.002]
[1765951841747,1.22140885,2943.5,2943.2,0.002]
[1765951842122,4.61882969,2943.5,2943.2,0.002]
[1765951842545,0.4927,2943.4,2943.2,0.002]
[1765951842846,0.9884,2943.3,2943.2,0.002]
[1765951843052,1.49985297,2943.3,2943.2,0.002]
[1765951844028,4.89739994,2943.3,2943.2,0.002]
[1765951848258,1.49985297,2943.3,2943.2,0.002]
[1765951849158,1.00715297,2943.3,2943.2,0.002]
[1765951849362,0.1958,2944.3,2943.2,0.002]
[1765951849537,0.4927,2944.0,2943.2,0.002]
[1765951849738,0.95708023,2944.0,2943.2,0.002]
[1765951850059,0.46438023,2944.0,2943.2,0.002]
[1765951850279,0.4927,2943.9,2943.2,0.002]
[1765951850966,7.2866398,2943.8,2943.2,0.002]
[1765951852731,0.9884,2943.3,2943.2,0.002]
[1765951853332,0.4927,2943.6,2943.2,0.002]
[1765951853769,0.4927,2943.5,2943.2,0.002]
[1765951853954,0.4927,2944.1,2943.2,0.002]
[1765951854171,0.95708023,2944.0,2943.2,0.002]
[1765951854565,0.4927,2943.9,2943.2,0.002]
[1765951854967,3.3969699,2943.8,2943.2,0.002]
[1765951856274,4.35396715,2943.9,2943.2,0.002]
[1765951856459,7.75085407,2943.9,2943.2,0.002]
[1765951856761,5.18295256,2943.9,2943.2,0.002]
[1765951856969,8.57983948,2943.9,2943.2,0.002]
[1765951857888,5.18295256,2943.9,2943.2,0.002]
[1765951858478,8.57983948,2943.9,2943.2,0.002]
[1765951859991,5.18295256,2943.9,2943.2,0.002]
[1765951860169,5.18295256,2943.9,2943.2,0.0586]
[1765951861086,3.39678937,2944.0,2943.3,0.01027714]
[1765951861289,3.39678937,2944.0,2943.3,0.06687714]
[1765951861587,7.28628914,2944.0,2943.3,0.06687714]
[1765951861992,0.539,2944.2,2943.3,0.06687714]
[1765951862167,0.4927,2944.0,2943.3,3.46439262]
[1765951864190,3.88951275,2944.0,2943.3,3.46439262]
[1765951864396,3.88951275,2944.0,2943.4,0.0566]
[1765951864893,3.39681275,2944.0,2943.4,0.0566]
[1765951865091,0.46438023,2944.1,2943.4,0.0566]
[1765951865318,0.4502,2944.2,2943.6,0.0566]
[1765951865608,0.4502,2944.1,2943.4,0.539]
[1765951866469,3.84693913,2944.0,2943.4,3.93639782]
[1765951866670,0.1958,2944.3,2943.4,3.93639782]
[1765951866671,3.39666,2944.1,2943.4,3.99299782]
[1765951866905,3.39666,2944.1,2943.4,4.39352532]
[1765951867076,3.39640929,2944.3,2943.5,0.06687714]
[1765951867269,3.39640929,2944.3,2943.7,0.06687714]
[1765951867609,0.4502,2944.2,2943.5,0.01027714]
[1765951867973,0.4502,2944.2,2943.4,7.39042936]
[1765951868303,0.4502,2944.2,2943.5,0.74007065]
[1765951868814,3.39662375,2944.1,2943.5,4.13732848]
[1765951870142,3.39662375,2944.1,2943.5,4.19392848]
[1765951870348,3.39641883,2944.3,2943.6,0.0566]
[1765951870746,3.39641883,2944.3,2943.8,0.01027714]
[1765951870962,3.8616579,2944.4,2944.3,0.0566]
[1765951871116,0.001,2944.4,2944.3,0.0566]
[1765951873248,0.001,2944.4,2944.0,0.0566]
[1765951873249,0.4502,2944.3,2944.0,0.0566]
[1765951874024,0.4502,2944.3,2943.9,0.539]
[1765951874222,0.4512,2944.4,2943.9,0.539]
[1765951874418,0.72534534,2944.4,2943.9,0.539]
[1765951874654,0.4615,2944.0,2943.9,0.539]
[1765951874950,0.4615,2944.0,2943.7,0.539]
[1765951875627,3.84662479,2944.3,2943.7,0.539]
[1765951876222,0.001,2944.4,2943.7,0.54927714]
[1765951876430,3.39730131,2944.4,2943.8,0.0566]
[1765951876848,0.4502,2944.3,2943.7,0.539]
[1765951877150,0.4502,2944.1,2943.7,0.539]
[1765951877334,0.4502,2944.1,2943.7,3.93607188]
[1765951877533,0.4502,2944.1,2943.7,3.93604503]
[1765951877942,0.4502,2944.1,2943.7,0.539]
[1765951878322,0.4502,2944.1,2943.7,3.93604536]
[1765951878526,0.4625,2944.4,2943.7,8.12428147]
[1765951878751,4.30897767,2944.4,2943.7,1.33015081]
[1765951878955,0.4502,2944.3,2943.7,3.93607135]
[1765951879329,3.84659547,2944.3,2943.7,3.93607135]
[1765951880028,3.39639547,2944.3,2943.7,3.93607135]
[1765951880364,0.4502,2944.2,2943.7,3.93607135]
[1765951881059,0.4502,2944.2,2943.7,3.93607951]
[1765951881566,0.001,2944.4,2943.7,3.93607951]
[1765951881736,0.001,2944.4,2944.3,0.1132]
[1765951881930,0.001,2944.4,2944.3,1.21732074]
[1765951882159,0.001,2944.4,2944.3,7.92438597]
[1765951882368,0.001,2944.4,2944.3,7.89042204]
[1765951882565,0.001,2944.4,2944.3,9.32648775]
[1765951883060,0.001,2944.4,2944.3,2.95814994]
[1765951883254,0.001,2944.4,2944.3,6.35454297]
[1765951885445,0.001,2944.4,2944.3,5.41003897]
[1765951885677,0.001,2944.4,2944.3,5.94903897]
[1765951887256,0.001,2944.4,2944.3,5.89243897]
[1765951887481,0.001,2944.4,2944.3,5.94903897]
[1765951887988,0.001,2944.4,2944.3,6.35454297]
[1765951888676,0.001,2944.4,2944.3,25.79172322]
[1765951888883,0.001,2944.4,2944.3,26.32288003]
[1765951890286,0.001,2944.4,2944.3,20.72110381]
[1765951890654,0.001,2944.4,2944.3,20.189947]
[1765951891783,0.001,2944.4,2944.3,19.650947]
[1765951892093,0.001,2944.4,2944.3,6.35454297]
[1765951892419,0.001,2944.4,2944.3,5.81554297]
[1765951892564,0.001,2944.4,2944.3,5.94903897]
[1765951893490,0.001,2944.4,2944.3,5.9830029]
[1765951893864,0.001,2944.4,2944.3,6.35454297]
[1765951897299,0.001,2944.4,2944.3,5.41003897]
[1765951897499,0.001,2944.4,2944.3,5.94903897]
[1765951899785,0.001,2944.4,2944.3,5.9830029]
[1765951900612,0.001,2944.4,2944.3,6.35454297]
[1765951901399,0.001,2944.4,2944.3,11.10623535]
[1765951903918,0.001,2944.4,2944.3,10.70073135]
[1765951905804,0.001,2944.4,2944.3,10.70273135]
[1765951906396,0.001,2944.4,2944.3,10.71300849]
[1765951906597,0.001,2944.4,2944.3,5.42231611]
[1765951906830,0.001,2944.4,2944.3,5.96131611]
[1765951908948,0.001,2944.4,2944.3,11.15247642]
[1765951909150,0.001,2944.4,2944.3,11.11851249]
[1765951909351,0.001,2944.4,2944.3,6.36682011]
[1765951910227,0.001,2944.4,2944.3,19.33376533]
[1765951910438,0.001,2944.4,2944.3,11.11851249]
[1765951910858,0.001,2944.4,2944.3,24.08545771]
[1765951911058,0.00203539,2945.1,2945.0,0.518704]
[1765951911262,0.00203539,2945.1,2945.0,6.27377661]
[1765951911467,0.00203539,2945.1,2945.0,7.37735122]
[1765951912576,0.00203539,2945.1,2945.0,12.1290436]
[1765951912742,0.00203539,2945.1,2945.0,10.77293695]
[1765951913076,0.003,2945.5,2945.4,0.518704]
[1765951913277,0.003,2945.5,2945.4,11.05942023]
[1765951913477,0.003,2945.5,2945.4,12.13141101]
[1765951913784,0.003,2945.5,2945.4,12.59871101]
[1765951914277,0.001,2946.8,2946.7,0.1132]
[1765951914578,0.9415,2946.3,2945.5,0.46438023]
[1765951914777,0.4673,2946.2,2945.6,3.39489407]
[1765951915274,5.1378254,2946.2,2945.3,0.0566]
[1765951915478,0.4673,2946.1,2945.4,0.539]
[1765951915776,0.46438023,2946.3,2945.4,0.539]
[1765951916074,2.10008251,2946.3,2945.6,0.48137714]
[1765951916274,0.46438023,2946.3,2945.7,0.50504778]
[1765951916479,0.46438023,2946.3,2945.7,0.4711]
[1765951916952,3.39412817,2946.3,2945.8,0.539]
[1765951917358,3.39405039,2946.4,2945.8,0.539]
[1765951917778,6.78810078,2946.4,2945.8,0.539]
[1765951918082,1.19284008,2946.3,2945.8,0.539]
[1765951918443,0.4673,2946.2,2945.3,0.0566]
[1765951918647,0.4673,2946.2,2945.4,0.539]
[1765951918856,3.39431791,2946.1,2945.4,0.54927714]
[1765951919077,3.39431791,2946.1,2945.4,0.539]
[1765951919078,0.1806,2945.9,2945.4,0.539]
[1765951919277,0.6479,2945.9,2945.3,0.5956]
[1765951919965,0.4673,2945.8,2945.3,0.539]
[1765951920566,0.4673,2945.8,2945.3,3.93420611]
[1765951920850,4.27360371,2946.1,2945.3,4.40530611]
[1765951921048,0.001,2946.3,2946.0,0.4624]
[1765951921448,0.001,2946.3,2946.2,0.4624]
[1765951921702,0.001,2946.3,2946.2,0.9335]
[1765951922380,0.001,2946.3,2945.7,0.1558]
[1765951922381,3.39510755,2946.3,2945.7,0.1558]
[1765951922581,3.39510755,2946.3,2945.4,0.47465737]
[1765951922582,0.001,2946.3,2945.8,0.54]
[1765951922750,0.001,2946.3,2945.8,1.0111]
[1765951923151,0.001,2946.3,2945.8,0.54]
[1765951923358,0.4683,2946.3,2945.8,0.54]
[1765951924251,0.4943,2945.9,2945.7,0.539]
[1765951924452,0.4943,2945.9,2945.5,0.1558]
[1765951924682,0.4943,2945.9,2945.6,0.539]
[1765951925594,3.39511877,2946.3,2945.6,4.3945782]
[1765951925896,0.001,2946.3,2946.2,0.4822]
[1765951926484,0.001,2946.3,2945.7,0.4607]
[1765951926685,0.001,2946.3,2945.7,1.25625494]
[1765951927291,0.001,2946.3,2945.7,4.65094762]
[1765951928663,0.001,2946.3,2946.2,0.4822]
[1765951929105,0.001,2946.3,2946.1,0.539]
[1765951929397,0.4943,2946.2,2946.1,0.539]
[1765951930006,0.9906,2946.2,2945.9,0.539]
[1765951932816,0.4943,2946.0,2945.9,0.539]
[1765951933190,0.4963,2946.2,2945.9,0.539]
[1765951933893,0.4973,2946.3,2945.9,0.539]
[1765951934224,3.89139574,2946.3,2945.9,0.539]
[1765951934518,0.001,2946.3,2945.9,0.539]
[1765951934807,0.4973,2946.3,2945.9,0.539]
[1765951935573,0.4973,2946.3,2945.9,1.0212]
[1765951935803,0.001,2946.3,2945.9,1.4819]
[1765951936004,0.001,2946.3,2945.9,1.0212]
[1765951936890,0.001,2946.0,2945.9,1.0212]
[1765951937792,0.4953,2946.0,2945.9,0.539]
[1765951938612,0.001,2946.0,2945.9,1.0212]
[1765951939533,0.9916,2946.0,2945.9,0.539]
[1765951940120,0.4888,2945.1,2944.4,0.1558]
[1765951940285,0.4888,2945.1,2944.4,0.36228429]
[1765951940482,6.17491006,2945.3,2944.5,0.9997]
[1765951940686,0.4963,2945.4,2944.6,0.4607]
[1765951941693,3.39523987,2945.3,2944.6,3.85669793]
[1765951941891,0.4963,2945.2,2944.5,0.539]
[1765951942113,0.4963,2945.1,2944.5,0.539]
[1765951942317,0.4963,2945.1,2944.5,3.94542704]
[1765951942504,0.72867797,2945.2,2944.6,0.4607]
[1765951943402,1.22497797,2945.2,2944.5,3.94542704]
[1765951945031,3.39547044,2945.1,2944.5,0.55127714]
[1765951946310,3.39547044,2945.1,2944.5,3.94743807]
[1765951946631,4.69333927,2945.1,2944.5,0.002]
[1765951946833,3.89177044,2945.1,2944.6,0.539]
[1765951947034,3.89177044,2945.1,2944.6,0.9997]
[1765951947629,3.89177044,2945.1,2944.6,0.539]
[1765951947830,0.4963,2945.1,2944.6,0.539]
[1765951948121,3.89177545,2945.1,2944.6,0.9997]
[1765951948533,3.89177545,2945.1,2944.6,0.539]
[1765951948736,8.01596397,2945.1,2944.6,0.539]
[1765951949240,0.4963,2945.0,2944.6,0.539]
[1765951950096,0.4943,2944.7,2944.6,0.539]
[1765951950302,0.9906,2944.7,2944.6,0.539]
[1765951950707,4.62048852,2945.1,2944.6,0.539]
[1765951950925,4.62048852,2945.1,2944.6,0.9997]
[1765951951127,4.12418852,2945.1,2944.6,0.539]
[1765951951435,0.4963,2945.0,2944.6,0.539]
[1765951951801,0.4963,2944.9,2944.6,0.539]
[1765951952309,0.6804,2944.9,2944.6,0.539]
[1765951952518,0.4943,2944.7,2944.6,0.539]
[1765951954140,8.33343559,2944.9,2944.6,0.539]
[1765951954304,8.81243559,2944.9,2944.6,0.539]
[1765951954503,8.76243559,2944.9,2944.6,0.539]
[1765951954706,3.39562598,2945.0,2944.5,0.4625]
[1765951954923,0.479,2944.9,2944.5,0.002]
[1765951955240,5.23259424,2944.9,2944.5,0.002]
[1765951955404,0.9653,2944.6,2944.5,0.002]
[1765951955817,0.4863,2944.6,2944.5,0.002]
[1765951957346,3.882347,2944.6,2944.5,0.002]
[1765951957513,4.350747,2944.6,2944.5,0.002]
[1765951958541,1.19711307,2945.1,2944.5,0.4678]
[1765951958737,3.39537108,2945.2,2944.5,0.4678]
[1765951958939,3.39537108,2945.2,2944.5,0.002]
[1765951958940,0.4684,2945.0,2944.5,0.002]
[1765951959268,0.4184,2944.8,2944.5,0.002]
[1765951959603,0.1887,2944.9,2944.5,0.002]
[1765951959808,3.58449389,2944.9,2944.5,0.002]
[1765951960241,3.58449389,2944.9,2944.5,0.44354382]
[1765951961513,4.05289389,2944.9,2944.5,0.002]
[1765951962220,4.05389389,2944.9,2944.5,0.002]
[1765951964259,4.05382414,2944.9,2944.5,0.002]
[1765951968560,7.44954828,2944.9,2944.5,0.002]